bitfinex-derivatives/quotes_SOLF0:USTF0_20240918
["timestamp","ask_amount","ask_price","bid_price","bid_amount"]
[1726701379917,10.45,132.07,132.05,3.7858]
[1726701382920,10.45,132.07,132.04,3.786]
[1726701385719,10.45,132.07,132.01,1.4362]
[1726701385720,10.45,132.07,132.02,10.45]
[1726701385917,10.45,132.07,132.03,7.09276823]
[1726701386118,10.45,132.07,132.04,7.09276823]
[1726701386423,3.7651559,132.08,132.04,3.786]
[1726701386626,10.45,132.09,132.04,10.45]
[1726701387223,14.17539113,132.09,132.05,10.87807772]
[1726701387519,14.17539113,132.09,132.01,1.4362]
[1726701387520,14.17539113,132.09,132.06,10.45]
[1726701387821,14.17539113,132.09,132.01,1.4362]
[1726701387822,3.72539113,132.09,132.07,10.45]
[1726701388018,1.5091,132.16,132.07,10.45]
[1726701388226,10.45,132.12,132.07,10.45]
[1726701388728,10.45,132.12,132.09,3.7847]
[1726701388928,1.4218,132.14,132.09,10.45]
[1726701389224,1.5091,132.16,132.1,10.45]
[1726701389225,10.45,132.15,132.1,10.45]
[1726701389818,10.45,132.15,132.11,3.7841]
[1726701390016,3.71422443,132.17,132.13,10.45]
[1726701390315,3.74186399,132.18,132.13,10.45]
[1726701390316,10.45,132.18,132.13,10.45]
[1726701390521,10.45,132.17,132.13,10.45]
[1726701390824,4.3711,132.22,132.13,10.45]
[1726701391024,10.45,132.17,132.13,10.45]
[1726701391821,3.86183936,132.16,132.13,14.2335]
[1726701392120,4.3711,132.22,132.12,1.4027]
[1726701392121,10.45,132.14,132.12,1.4027]
[1726701392325,4.3711,132.22,132.09,3.7846]
[1726701392326,10.45,132.13,132.09,3.7846]
[1726701392630,10.45,132.13,132.09,14.2346]
[1726701394131,10.45,132.12,132.08,14.2349]
[1726701394328,10.45,132.11,132.07,14.8675]
[1726701394519,10.45,132.1,132.07,2.988]
[1726701395225,10.45,132.1,132.07,1.4926]
[1726701395419,10.45,132.1,132.06,10.45]
[1726701396729,10.45,132.09,132.05,10.45]
[1726701396932,3.83974019,132.08,132.05,10.45]
[1726701397625,3.83974019,132.08,132.05,14.2358]
[1726701398033,3.7842,132.11,132.05,14.2358]
[1726701398236,10.45,132.1,132.05,14.2358]
[1726701399439,14.2344,132.1,132.05,10.45]
[1726701400737,14.2344,132.1,132.05,14.2358]
[1726701400931,10.45,132.1,132.05,14.2358]
[1726701402631,10.45,132.07,132.04,1.4414]
[1726701402941,14.27753093,132.06,132.02,10.45]
[1726701403139,10.45,132.05,132.02,10.45]
[1726701403741,14.26788951,132.06,132.03,10.45]
[1726701403934,14.26788951,132.06,132.0,1.4746]
[1726701403935,10.45,132.07,132.04,10.45]
[1726701404128,10.45,132.08,132.04,10.45]
[1726701404334,14.23872797,132.08,132.05,10.45]
[1726701405739,14.23872797,132.08,132.04,14.2359]
[1726701406142,14.23872797,132.08,132.04,10.45]
[1726701407639,14.2347,132.09,132.05,10.45]
[1726701408144,18.04908848,132.09,132.05,10.45]
[1726701413444,10.45,132.12,132.08,10.45]
[1726701413839,14.234,132.12,132.08,14.2348]
[1726701414034,2.8914,132.15,132.1,10.45]
[1726701414236,13.3414,132.15,132.1,10.45]
[1726701414439,10.45,132.14,132.06,2.9618]
[1726701414641,10.45,132.14,132.1,10.45]
[1726701415033,10.45,132.13,132.09,10.45]
[1726701416637,2.8914,132.15,132.1,10.45]
[1726701416842,10.45,132.14,132.1,10.45]
[1726701417639,10.45,132.14,132.1,14.2344]
[1726701418438,10.45,132.14,132.1,10.45]
[1726701419645,7.64880246,132.16,132.1,14.2344]
[1726701419846,10.45,132.15,132.11,10.45]
[1726701420147,14.24192787,132.15,132.11,10.45]
[1726701421150,18.02492787,132.15,132.11,10.45]
[1726701423642,3.7833,132.14,132.11,10.45]
[1726701423942,10.45,132.14,132.1,3.7844]
[1726701424550,10.45,132.14,132.09,14.2345]
[1726701424945,10.45,132.14,132.09,10.45]
[1726701425251,10.45,132.14,132.1,3.7844]
[1726701426242,10.45,132.14,132.09,14.2346]
[1726701426650,14.2333,132.14,132.09,14.2346]
[1726701427239,10.45,132.11,132.06,2.9618]
[1726701427450,10.45,132.11,132.07,10.45]
[1726701427952,2.858,132.18,132.09,10.45]
[1726701427953,10.45,132.13,132.09,10.45]
[1726701428251,14.20634708,132.13,132.09,10.45]
[1726701428653,17.98994708,132.13,132.09,10.45]
[1726701429252,14.20634708,132.13,132.09,10.45]
[1726701430352,17.98984708,132.13,132.09,10.45]
[1726701431547,10.45,132.12,132.07,3.7851]
[1726701431748,10.45,132.08,132.05,1.3855]
[1726701432054,10.45,132.07,132.05,1.3855]
[1726701432749,14.29553026,132.07,132.05,1.3855]
[1726701432943,14.29553026,132.07,132.03,10.45]
[1726701433748,14.29553026,132.07,132.04,3.7861]
[1726701434649,14.29553026,132.07,132.03,14.2363]
[1726701436553,3.84553026,132.07,132.04,14.2361]
[1726701436744,10.45,132.09,132.05,10.45]
[1726701436945,3.7681856,132.1,132.07,10.45]
[1726701437151,11.9135,132.12,132.08,14.2349]
[1726701437152,10.45,132.12,132.08,14.2349]
[1726701437351,10.45,132.14,132.1,10.45]
[1726701437552,14.21704946,132.14,132.1,10.45]
[1726701437751,14.21704946,132.14,132.09,10.45]
[1726701437958,10.45,132.12,132.09,10.45]
[1726701438749,3.80757166,132.11,132.09,10.45]
[1726701441252,3.80757166,132.11,132.09,14.2347]
[1726701441464,2.9635,132.17,132.1,10.45]
[1726701441754,10.45,132.16,132.12,10.45]
[1726701441962,14.2327,132.16,132.12,10.45]
[1726701443754,14.2327,132.16,132.12,14.2337]
[1726701445760,3.783,132.15,132.12,14.2337]
[1726701446257,10.45,132.13,132.08,10.45]
[1726701446454,14.3289942,132.13,132.08,10.45]
[1726701446857,14.3289942,132.13,132.1,3.7842]
[1726701447164,14.3289942,132.13,132.07,10.45]
[1726701447165,10.45,132.12,132.07,10.45]
[1726701447361,10.45,132.11,132.07,3.7852]
[1726701447655,14.22186476,132.11,132.07,10.45]
[1726701448859,14.22186476,132.11,132.08,3.7848]
[1726701450366,14.22186476,132.11,132.07,14.2351]
[1726701450865,14.22186476,132.11,132.08,3.7849]
[1726701451061,2.9635,132.17,132.1,10.45]
[1726701451259,10.45,132.15,132.1,10.45]
[1726701451462,10.45,132.15,132.1,14.2343]
[1726701451653,14.2331,132.15,132.1,14.2343]
[1726701452757,10.45,132.15,132.12,10.45]
[1726701452960,1.4731,132.17,132.14,10.45]
[1726701453166,14.2323,132.18,132.14,10.45]
[1726701453358,1.4611,132.19,132.15,10.45]
[1726701453359,10.45,132.19,132.15,10.45]
[1726701454962,14.232,132.19,132.15,10.45]
[1726701455757,14.2322,132.18,132.13,14.2334]
[1726701456363,14.2325,132.17,132.13,10.45]
[1726701456560,10.45,132.15,132.1,10.45]
[1726701456957,1.4355,132.2,132.11,10.45]
[1726701457156,10.45,132.17,132.12,10.45]
[1726701457468,14.2327,132.16,132.12,3.7838]
[1726701457962,3.7827,132.16,132.12,3.7838]
[1726701459364,3.7827,132.16,132.11,3.784]
[1726701459961,3.7824,132.17,132.12,3.7836]
[1726701460457,3.7827,132.16,132.12,3.7836]
[1726701460655,1.4355,132.2,132.09,16.36]
[1726701460859,17.7955,132.2,132.11,16.36]
[1726701461066,3.7822,132.18,132.11,16.36]
[1726701461567,3.7822,132.18,132.13,3.7833]
[1726701464068,3.7822,132.18,132.14,3.7832]
[1726701464671,16.36,132.19,132.12,1.518]
[1726701465171,3.7824,132.17,132.12,5.3016]
[1726701466668,3.7827,132.16,132.12,5.3016]
[1726701471174,3.7825,132.17,132.12,5.3016]
[1726701472076,3.7823,132.18,132.13,3.7834]
[1726701474484,3.7825,132.17,132.13,3.7834]
[1726701474886,16.36,132.19,132.12,5.3017]
[1726701475282,16.36,132.19,132.12,1.518]
[1726701475482,16.36,132.19,132.13,3.7835]
[1726701475990,3.7827,132.16,132.13,3.7835]
[1726701476793,3.7827,132.16,132.12,5.3017]
[1726701479994,3.7827,132.16,132.13,10.47]
[1726701481094,3.7825,132.17,132.14,10.47]
[1726701483598,3.7822,132.18,132.14,14.2532]
[1726701485397,1.4355,132.2,132.15,3.7828]
[1726701485602,3.782,132.19,132.15,14.2528]
[1726701485802,3.782,132.19,132.15,10.47]
[1726701486001,3.7818,132.2,132.16,3.7825]
[1726701486201,14.22729702,132.21,132.16,3.7825]
[1726701486502,10.47,132.2,132.14,10.47]
[1726701486809,14.24744205,132.2,132.14,10.47]
[1726701486998,14.24744205,132.2,132.15,3.7828]
[1726701487304,14.24744205,132.2,132.18,10.47]
[1726701487305,3.77744205,132.2,132.18,10.47]
[1726701487601,10.47,132.23,132.18,10.47]
[1726701488708,3.7811,132.22,132.18,14.2519]
[1726701490207,14.2511,132.22,132.18,10.47]
[1726701493109,3.7813,132.21,132.17,10.47]
[1726701494814,1.528,132.24,132.19,10.47]
[1726701495018,10.47,132.23,132.19,10.47]
[1726701495408,3.781,132.22,132.19,10.47]
[1726701495917,3.781,132.22,132.17,3.7822]
[1726701496115,3.781,132.22,132.18,10.47]
[1726701497918,3.781,132.22,132.19,10.47]
[1726701500718,10.47,132.23,132.19,10.47]
[1726701500719,3.7813,132.21,132.19,10.47]
[1726701502515,10.47,132.2,132.16,10.47]
[1726701502718,14.31696257,132.2,132.16,10.47]
[1726701502917,3.7823,132.18,132.16,10.47]
[1726701506427,3.7819,132.19,132.16,10.47]
[1726701506625,3.7819,132.19,132.17,10.47]
[1726701506819,3.84696257,132.2,132.17,10.47]
[1726701507017,10.47,132.23,132.19,10.47]
[1726701507521,3.7814,132.21,132.19,10.47]
[1726701517231,10.47,132.22,132.13,7.06259408]
[1726701517434,10.47,132.2,132.16,10.47]
[1726701517727,7.54012227,132.2,132.17,14.2522]
[1726701518132,7.54012227,132.2,132.19,10.47]
[1726701518133,3.75842227,132.2,132.19,10.47]
[1726701518425,10.47,132.22,132.19,10.47]
[1726701519527,3.7813,132.21,132.19,10.47]
[1726701527232,10.47,132.23,132.19,14.2517]
[1726701527432,10.47,132.23,132.19,10.47]
[1726701528937,3.7813,132.21,132.19,10.47]
[1726701531244,10.47,132.22,132.17,15.6575]
[1726701532039,3.7817,132.2,132.17,15.6575]
[1726701532342,7.52990608,132.2,132.17,15.6575]
[1726701533942,7.52990608,132.2,132.17,11.8753]
[1726701534931,7.52990608,132.2,132.18,10.47]
[1726701535744,3.74820608,132.2,132.19,10.47]
[1726701535942,10.47,132.24,132.19,10.47]
[1726701536445,3.7811,132.22,132.19,10.47]
[1726701536645,10.47,132.24,132.19,10.47]
[1726701536940,3.7815,132.2,132.18,10.47]
[1726701537137,7.49301063,132.2,132.18,10.47]
[1726701537642,3.71151063,132.2,132.19,10.47]
[1726701537837,3.7814,132.21,132.19,10.47]
[1726701541345,3.7815,132.2,132.17,5.1876]
[1726701541648,7.4772103,132.2,132.17,15.6576]
[1726701542450,3.6957103,132.2,132.18,14.252]
[1726701542644,3.7813,132.21,132.18,14.252]
[1726701543243,1.4249,132.25,132.15,0.1054]
[1726701543557,1.4249,132.25,132.09,174.85154229]
[1726701543558,10.47,132.18,132.14,10.47]
[1726701543744,10.47,132.18,132.14,14.2531]
[1726701543745,14.2523,132.18,132.14,14.2531]
[1726701543942,14.2523,132.18,132.15,10.47]
[1726701544347,17.97893857,132.18,132.15,10.47]
[1726701545246,10.47,132.16,132.1,1.4868]
[1726701545551,10.47,132.17,132.13,10.47]
[1726701545750,10.47,132.18,132.14,10.47]
[1726701545947,14.30373987,132.18,132.14,10.47]
[1726701546145,3.7825,132.17,132.14,10.47]
[1726701547039,3.7825,132.17,132.14,14.2532]
[1726701549043,3.7825,132.17,132.1,1.4868]
[1726701549044,10.47,132.15,132.1,1.4868]
[1726701549255,10.47,132.13,132.1,1.4868]
[1726701549648,10.47,132.15,132.11,10.47]
[1726701549846,28.35305619,132.21,132.12,10.47]
[1726701550149,3.7828,132.16,132.14,10.47]
[1726701550966,7.538197,132.16,132.14,10.47]
[1726701551259,3.755397,132.16,132.14,14.2532]
[1726701551447,3.7825,132.17,132.14,10.47]
[1726701551955,7.55635137,132.17,132.14,10.47]
[1726701553058,3.7829,132.16,132.13,3.7834]
[1726701553263,3.7829,132.16,132.13,14.2534]
[1726701553854,7.60784654,132.16,132.13,14.2534]
[1726701555055,7.60784654,132.16,132.13,10.47]
[1726701555264,3.7832,132.14,132.11,17.1035]
[1726701555458,3.82494654,132.16,132.11,17.1035]
[1726701555657,10.47,132.17,132.12,10.47]
[1726701556154,14.24962048,132.17,132.12,10.47]
[1726701556459,3.7831,132.15,132.12,14.2536]
[1726701557254,3.7828,132.16,132.12,14.2536]
[1726701558052,14.24962048,132.17,132.12,10.47]
[1726701559860,3.7831,132.15,132.12,14.2538]
[1726701560967,3.7828,132.16,132.13,10.47]
[1726701564866,3.7828,132.16,132.13,14.2535]
[1726701565966,7.56212048,132.17,132.13,14.2535]
[1726701566260,14.2525,132.17,132.13,14.2535]
[1726701566865,18.04650317,132.17,132.13,14.2535]
[1726701569368,3.7828,132.16,132.13,14.2535]
[1726701572066,14.2528,132.16,132.12,3.7837]
[1726701572377,14.2528,132.16,132.11,2.8495]
[1726701572378,10.47,132.14,132.1,1.4868]
[1726701573067,3.7837,132.13,132.1,1.4868]
[1726701574363,3.7837,132.13,132.1,11.9568]
[1726701575784,3.784,132.12,132.1,1.4868]
[1726701576073,14.17922848,132.14,132.1,1.4868]
[1726701576872,3.7836,132.13,132.1,1.4868]
[1726701579774,3.7836,132.13,132.1,11.9568]
[1726701584868,7.49262848,132.14,132.12,10.47]
[1726701585478,3.70922848,132.14,132.12,10.47]
[1726701585677,3.7831,132.15,132.12,10.47]
[1726701586270,7.49581365,132.15,132.12,10.47]
[1726701589880,3.71271365,132.15,132.12,14.2537]
[1726701590081,3.7828,132.16,132.12,14.2537]
[1726701590575,7.54700024,132.16,132.12,14.2537]
[1726701590883,7.54700024,132.16,132.13,3.7835]
[1726701591779,3.7835,132.14,132.1,1.4868]
[1726701591980,3.7835,132.14,132.11,10.47]
[1726701592781,3.7831,132.15,132.11,14.254]
[1726701593383,18.01700024,132.16,132.12,3.7838]
[1726701594287,3.783,132.15,132.12,3.7838]
[1726701595983,3.783,132.15,132.12,14.2538]
[1726701596184,7.54690024,132.16,132.12,14.2538]
[1726701597280,3.783,132.15,132.12,14.2538]
[1726701598083,7.53480495,132.15,132.12,14.2538]
[1726701601582,3.75180495,132.15,132.13,10.47]
[1726701601784,10.47,132.19,132.14,10.47]
[1726701601989,14.20287419,132.19,132.14,10.47]
[1726701602189,3.7823,132.18,132.14,14.2532]
[1726701602590,14.20287419,132.19,132.14,14.2532]
[1726701602890,3.7822,132.18,132.14,14.2532]
[1726701603088,14.20287419,132.19,132.14,14.2532]
[1726701603488,3.7826,132.17,132.14,14.2532]
[1726701606497,14.20287419,132.19,132.16,10.47]
[1726701606498,3.73287419,132.19,132.16,10.47]
[1726701606694,10.47,132.19,132.12,7.05798829]
[1726701606888,10.47,132.19,132.14,10.47]
[1726701606889,14.28263913,132.19,132.14,10.47]
[1726701607089,3.7824,132.18,132.14,14.2532]
[1726701607793,3.7824,132.17,132.13,3.7835]
[1726701607992,3.7824,132.17,132.14,10.47]
[1726701608394,3.7824,132.17,132.14,14.2532]
[1726701608695,3.7822,132.18,132.15,10.47]
[1726701611702,3.7822,132.18,132.15,14.253]
[1726701613901,3.7822,132.18,132.15,10.47]
[1726701614405,10.47,132.17,132.13,3.7834]
[1726701614606,10.47,132.17,132.13,14.2534]
[1726701615006,3.7829,132.16,132.13,10.47]
[1726701615407,10.47,132.14,131.97,7.5758]
[1726701615609,10.47,132.08,132.03,1.4456]
[1726701615816,10.47,132.08,132.04,17.53598518]
[1726701616005,14.2552,132.08,132.05,7.06598518]
[1726701616205,14.2552,132.08,132.04,10.47]
[1726701616512,14.2232204,132.08,132.05,7.07289801]
[1726701616713,14.2232204,132.08,132.04,14.2559]
[1726701616910,14.2232204,132.08,132.05,7.06806493]
[1726701617213,3.7532204,132.08,132.06,10.47]
[1726701617414,14.2545,132.1,132.06,10.47]
[1726701617710,3.87356154,132.09,132.07,14.2552]
[1726701617903,10.47,132.13,132.08,10.47]
[1726701618213,14.30493197,132.13,132.08,10.47]
[1726701618411,14.30493197,132.13,132.08,14.2549]
[1726701618605,3.83493197,132.13,132.09,10.47]
[1726701618800,10.47,132.14,132.09,10.47]
[1726701619408,14.26781728,132.14,132.09,10.47]
[1726701619709,3.7835,132.13,132.09,14.2545]
[1726701619912,3.79781728,132.14,132.1,10.47]
[1726701620107,13.2582,132.15,132.1,10.47]
[1726701620309,1.4604,132.2,132.1,10.47]
[1726701620505,20.35988814,132.2,132.11,10.47]
[1726701620815,10.47,132.16,132.12,10.47]
[1726701621017,3.783,132.15,132.12,10.47]
[1726701621315,3.78985195,132.14,132.12,10.47]
[1726701621501,10.47,132.16,132.12,10.47]
[1726701621907,14.2529,132.16,132.12,14.2536]
[1726701623410,3.86279482,132.15,132.13,3.7835]
[1726701623607,14.2525,132.17,132.13,3.7835]
[1726701625016,3.7827,132.16,132.12,14.2537]
[1726701625216,3.81207813,132.15,132.12,14.2537]
[1726701627612,14.2527,132.16,132.12,14.2537]
[1726701628216,14.2532,132.15,132.12,10.47]
[1726701628416,18.01191206,132.15,132.12,10.47]
[1726701630221,7.54191206,132.15,132.12,14.2538]
[1726701630427,3.75871206,132.15,132.13,10.47]
[1726701631315,3.75871206,132.15,132.13,14.2535]
[1726701633417,3.75871206,132.15,132.13,10.47]
[1726701636721,3.75871206,132.15,132.12,3.7837]
[1726701636926,3.75871206,132.15,132.12,14.2537]
[1726701637423,3.75871206,132.15,132.13,14.2533]
[1726701637724,13.4156,132.2,132.14,10.47]
[1726701637932,13.4156,132.2,132.16,10.47]
[1726701638220,3.782,132.19,132.16,10.47]
[1726701638630,17.1972,132.2,132.16,14.2525]
[1726701638921,14.2516,132.2,132.16,14.2525]
[1726701640114,10.47,132.2,132.17,3.7823]
[1726701640320,10.47,132.2,132.06,10.5685]
[1726701640321,3.7813,132.21,132.18,10.47]
[1726701641026,18.06676684,132.22,132.18,10.47]
[1726701641229,14.2511,132.22,132.18,10.47]
[1726701641724,10.47,132.21,132.08,1.4063]
[1726701641927,3.73893422,132.2,132.17,10.47]
[1726701642926,3.73893422,132.2,132.17,14.2522]
[1726701646336,14.2516,132.2,132.16,14.2526]
[1726701646534,17.97635251,132.2,132.16,14.2526]
[1726701649343,7.50635251,132.2,132.16,14.2526]
[1726701649840,17.97635251,132.2,132.16,14.2526]
[1726701650240,17.97635251,132.2,132.16,3.7826]
[1726701650441,10.47,132.17,132.13,1.4246]
[1726701650637,10.47,132.16,132.11,10.47]
[1726701650939,14.25717895,132.17,132.12,10.47]
[1726701651136,3.78717895,132.17,132.13,10.47]
[1726701651332,10.47,132.18,132.13,10.47]
[1726701651538,14.2522,132.18,132.14,14.253]
[1726701651937,18.00873038,132.18,132.14,14.253]
[1726701652140,14.22653038,132.18,132.14,14.253]
[1726701652539,14.22653038,132.18,132.15,3.783]
[1726701653535,3.75653038,132.18,132.15,3.783]
[1726701653743,14.2519,132.19,132.15,3.783]
[1726701654038,3.7819,132.19,132.15,3.783]
[1726701654241,18.04145287,132.19,132.15,3.783]
[1726701654441,14.2519,132.19,132.15,3.783]
[1726701655045,17.96538175,132.19,132.15,3.783]
[1726701656841,17.96538175,132.19,132.16,3.7827]
[1726701658937,14.18348175,132.19,132.17,3.7824]
[1726701659445,3.71348175,132.19,132.17,3.7824]
[1726701659751,14.2516,132.2,132.17,3.7824]
[1726701660252,17.97861582,132.2,132.17,3.7824]
[1726701663653,3.72701582,132.2,132.18,14.252]
[1726701663848,10.47,132.22,132.18,14.252]
[1726701664051,3.7813,132.21,132.18,14.252]
[1726701664249,7.48845335,132.21,132.18,14.252]
[1726701664657,3.70715335,132.21,132.18,14.252]
[1726701664953,10.47,132.21,132.18,14.252]
[1726701665150,14.29653019,132.21,132.18,14.252]
[1726701665344,3.82653019,132.21,132.18,14.252]
[1726701665543,3.7813,132.21,132.18,14.252]
[1726701665754,7.63431661,132.21,132.18,14.252]
[1726701665949,10.47,132.22,132.19,3.7818]
[1726701666752,10.47,132.22,132.18,10.47]
[1726701667349,14.2511,132.22,132.18,10.47]
[1726701668257,14.2511,132.22,132.18,14.2519]
[1726701671656,3.7802,132.25,132.21,3.7812]
[1726701671859,3.77592819,132.28,132.23,10.47]
[1726701672060,10.47,132.28,132.23,10.47]
[1726701672264,3.7796,132.27,132.23,14.2506]
[1726701672656,3.70025874,132.28,132.23,10.47]
[1726701672863,1.4907,132.3,132.25,10.47]
[1726701673161,10.47,132.29,132.24,10.47]
[1726701673764,14.2491,132.29,132.25,3.7801]
[1726701673960,17.93838772,132.29,132.25,3.7801]
[1726701674652,14.15928772,132.29,132.26,3.7798]
[1726701676058,17.93828772,132.29,132.25,14.2501]
[1726701678865,14.15928772,132.29,132.26,3.7798]
[1726701680873,17.93828772,132.29,132.25,3.7799]
[1726701681970,17.93828772,132.29,132.25,14.2499]
[1726701684566,3.68928772,132.29,132.17,11.9298]
[1726701684771,10.47,132.32,132.28,10.47]
[1726701684973,14.30102144,132.32,132.28,10.47]
[1726701686976,18.07932144,132.32,132.29,3.7789]
[1726701688578,3.7784,132.31,132.28,14.2491]
[1726701688978,14.30102144,132.32,132.28,10.47]
[1726701689281,18.07922144,132.32,132.29,3.7789]
[1726701689779,18.07922144,132.32,132.29,10.47]
[1726701690681,14.30102144,132.32,132.29,10.47]
[1726701690874,3.83102144,132.32,132.29,10.47]
[1726701691076,10.47,132.33,132.29,10.47]
[1726701691583,14.27132685,132.33,132.29,10.47]
[1726701692078,14.27132685,132.33,132.2,7.5628]
[1726701692079,10.47,132.3,132.2,7.5628]
[1726701692281,14.2488,132.3,132.27,3.7795]
[1726701692882,17.95825988,132.3,132.27,3.7795]
[1726701693086,17.95825988,132.3,132.25,10.47]
[1726701693087,17.95825988,132.3,132.26,3.7797]
[1726701693381,17.95825988,132.3,132.26,14.2497]
[1726701693586,7.48825988,132.3,132.26,10.47]
[1726701694284,3.70945988,132.3,132.27,14.2493]
[1726701694487,14.2485,132.31,132.27,14.2493]
[1726701694983,17.94235232,132.31,132.27,3.7793]
[1726701695185,3.7787,132.3,132.27,3.7793]
[1726701695581,14.16385232,132.31,132.26,14.2497]
[1726701695785,10.47,132.28,132.18,151.24]
[1726701696086,10.47,132.28,132.24,3.7802]
[1726701696289,10.47,132.28,132.24,14.2502]
[1726701696579,14.23796381,132.28,132.24,14.2502]
[1726701697085,14.23796381,132.28,132.25,3.7801]
[1726701697485,18.01726381,132.28,132.25,3.7801]
[1726701698985,18.01726381,132.28,132.24,14.2502]
[1726701702080,18.01726381,132.28,132.25,3.7801]
[1726701702479,14.23796381,132.28,132.25,3.7801]
[1726701703889,18.01726381,132.28,132.25,3.7801]
[1726701705478,18.01726381,132.28,132.24,14.2503]
[1726701707584,14.23796381,132.28,132.24,14.2503]
[1726701707783,14.23796381,132.28,132.25,14.25]
[1726701708679,18.01726381,132.28,132.25,14.25]
[1726701708882,3.76796381,132.28,132.27,10.47]
[1726701709089,10.47,132.31,132.27,10.47]
[1726701709290,10.47,132.3,132.26,14.2496]
[1726701709990,17.9796171,132.3,132.26,14.2496]
[1726701711499,3.779,132.29,132.25,3.78]
[1726701711686,14.249,132.29,132.25,14.25]
[1726701712286,3.7793,132.28,132.25,14.25]
[1726701712486,3.7793,132.28,132.25,10.47]
[1726701713094,3.7793,132.28,132.24,3.7802]
[1726701713286,3.7793,132.28,132.24,14.2502]
[1726701714485,3.7793,132.28,132.25,3.7801]
[1726701714789,3.7793,132.28,132.25,14.2501]
[1726701714987,14.2491,132.29,132.25,14.2501]
[1726701716192,3.7791,132.29,132.26,10.47]
[1726701716387,14.2008171,132.3,132.17,141.3665204]
[1726701716388,3.7308171,132.3,132.28,10.47]
[1726701716590,10.47,132.31,132.27,10.47]
[1726701716784,3.84879441,132.31,132.19,7.5636]
[1726701717095,10.47,132.33,132.29,10.47]
[1726701717299,14.25375289,132.33,132.29,10.47]
[1726701717594,3.7783,132.32,132.29,10.47]
[1726701718903,3.7783,132.32,132.29,14.249]
[1726701719194,3.7783,132.32,132.29,10.47]
[1726701720684,14.2483,132.32,132.28,14.249]
[1726701722089,10.47,132.32,132.29,3.7789]
[1726701722398,18.03165289,132.33,132.29,14.2489]
[1726701723099,18.03165289,132.33,132.3,3.7786]
[1726701723100,14.25375289,132.33,132.3,3.7786]
[1726701723395,14.25375289,132.33,132.29,10.47]
[1726701723704,14.2483,132.32,132.28,14.2491]
[1726701724098,14.2483,132.32,132.28,10.47]
[1726701724398,18.04244523,132.32,132.28,10.47]
[1726701725496,7.57244523,132.32,132.29,10.47]
[1726701725807,7.57244523,132.32,132.29,14.2489]
[1726701726305,3.79414523,132.32,132.29,14.2489]
[1726701726595,10.47,132.33,132.29,14.2489]
[1726701726996,18.0005552,132.33,132.29,14.2489]
[1726701727789,10.47,132.3,132.24,4.52]
[1726701727994,10.47,132.32,132.28,10.47]
[1726701728195,3.7525552,132.33,132.3,10.47]
[1726701728500,10.47,132.34,132.3,10.47]
[1726701728705,14.33938538,132.34,132.3,10.47]
[1726701729096,14.33938538,132.34,132.29,10.47]
[1726701729296,14.33938538,132.34,132.3,14.2486]
[1726701729694,3.86938538,132.34,132.3,10.47]
[1726701729891,10.47,132.32,132.29,14.2488]
[1726701730092,14.22983269,132.32,132.29,14.2488]
[1726701730296,7.53813269,132.32,132.29,3.7789]